{"text_format":"3","workbook":"xlsx","n_sheets":4,"sheets":["Start","PROJEKTPARAMETRE","PROJEKTOPLYSNINGER","PROJEKTTOTALER"],"not_rendered":{"charts":2,"defined_names":3,"pivot_tables":1},"read":"whole","date_system":"1900"}

{"sheet":"Start","index":0,"n_rows":8,"n_cols":2,"rows_kept":8}
[null,"OM DENNE SKABELON"]
[]
[null,"Brug denne projektmappe til at holde styr på Projektparametre, Projektoplysninger og Projekttotaler under Projektplanlægning for Advokatfirmaer."]
[null,"Indtast Firmanavn i regnearket Projektparametre, så opdateres det automatisk i andre regneark."]
[null,"Indtast oplysninger i regnearket Projektparametre for at opdatere kolonnediagrammer samt i regnearket Projektoplysninger. Pivottabellen i regnearket Projekttotaler opdateres automatisk."]
[null,"Bemærk!  "]
[null,"Der er yderligere vejledning at finde i kolonne A i hvert regneark. Denne tekst er skjult med vilje. Du kan fjerne tekst ved at markere kolonne A og derefter vælge Slet. For ikke længere at skjule tekst skal du markere kolonne A og derefter ændre skriftfarven."]
[null,"Hvis du vil vide mere om tabellerne i regnearkene, skal du trykke på Skift og derefter F10, mens du er i en tabel, vælge indstillingen TABEL og derefter vælge ALTERNATIV TEKST. For at få en Pivottabel i regnearket Projekttotaler, skal du trykke på Skift og derefter F10, mens du er i en tabel, vælge INDSTILLINGERFORPIVOTTABEL og derefter vælge fanen ALTERNATIV TEKST."]

{"sheet":"PROJEKTPARAMETRE","index":1,"n_rows":19,"n_cols":9,"rows_kept":19}
["Opret Projektparametre i dette regneark. Angiv Firmanavn i cellen til højre. Der vises nyttig vejledning i cellerne i denne kolonne.","Firmanavn"]
["Titlen på dette regneark vises i cellen til højre.","Projektplanlægning for advokatfirmaer"]
["En meddelelse om fortrolighed er i cellen til højre.",{"$f":"B1&\" Confidential\"","v":"Firmanavn Confidential"}]
["Tip er i cellen til højre.","De grå celler beregnes for dig. Du behøver ikke at angive noget i dem."]
["Angiv oplysninger i tabellen Parametre, der starter i cellen til højre. Den næste vejledning er i celle A12.","PROJEKTTYPE","GENEREL PARTNER","VIRKSOMHEDSADVOKAT","FORSVARSADVOKAT","ADVOKAT TIL INTELLEKTUEL EJENDOMSRET","KONKURSADVOKAT","ADMINISTRATIONSMEDARBEJDERE","Total"]
[null,"Virksomhedsoprettelse",{"v":0.1,"d":"10%"},{"v":0.4,"d":"40%"},{"v":0,"d":"0%"},{"v":0,"d":"0%"},{"v":0,"d":"0%"},{"v":0.5,"d":"50%"},{"$f":"SUM(Parametre[[#This Row],[GENEREL PARTNER]:[ADMINISTRATIONSMEDARBEJDERE]])","v":{"v":1,"d":"100%"}}]
[null,"Virksomhedserhvervelse",{"v":0.1,"d":"10%"},{"v":0.4,"d":"40%"},{"v":0,"d":"0%"},{"v":0.1,"d":"10%"},{"v":0,"d":"0%"},{"v":0.4,"d":"40%"},{"$f":"SUM(Parametre[[#This Row],[GENEREL PARTNER]:[ADMINISTRATIONSMEDARBEJDERE]])","v":{"v":1,"d":"100%"}}]
[null,"Produktansvarsforsvar",{"v":0.2,"d":"20%"},{"v":0,"d":"0%"},{"v":0.5,"d":"50%"},{"v":0,"d":"0%"},{"v":0,"d":"0%"},{"v":0.3,"d":"30%"},{"$f":"SUM(Parametre[[#This Row],[GENEREL PARTNER]:[ADMINISTRATIONSMEDARBEJDERE]])","v":{"v":1,"d":"100%"}}]
[null,"Patentansøgning",{"v":0.1,"d":"10%"},{"v":0,"d":"0%"},{"v":0,"d":"0%"},{"v":0.6,"d":"60%"},{"v":0,"d":"0%"},{"v":0.3,"d":"30%"},{"$f":"SUM(Parametre[[#This Row],[GENEREL PARTNER]:[ADMINISTRATIONSMEDARBEJDERE]])","v":{"v":1,"d":"100%"}}]
[null,"Medarbejdersøgsmål",{"v":0.2,"d":"20%"},{"v":0.1,"d":"10%"},{"v":0.4,"d":"40%"},{"v":0,"d":"0%"},{"v":0,"d":"0%"},{"v":0.3,"d":"30%"},{"$f":"SUM(Parametre[[#This Row],[GENEREL PARTNER]:[ADMINISTRATIONSMEDARBEJDERE]])","v":{"v":1,"d":"100%"}}]
[null,"Konkurs",{"v":0.1,"d":"10%"},{"v":0.2,"d":"20%"},{"v":0,"d":"0%"},{"v":0,"d":"0%"},{"v":0.4,"d":"40%"},{"v":0.3,"d":"30%"},{"$f":"SUM(Parametre[[#This Row],[GENEREL PARTNER]:[ADMINISTRATIONSMEDARBEJDERE]])","v":{"v":1,"d":"100%"}}]
["Angiv Blandede satser i cellerne til højre, cellerne C12 til H12. Den næste vejledning er i celle A14.","Blandede satser",{"v":350,"d":"kr. 350"},{"v":250,"d":"kr. 250"},{"v":300,"d":"kr. 300"},{"v":275,"d":"kr. 275"},{"v":225,"d":"kr. 225"},{"v":125,"d":"kr. 125"}]
[]
["Søjlediagrammet, der sammenligner de planlagte og faktiske omkostninger, er i cellen til højre, og søjlediagrammet, der sammenligner de planlagte og faktiske timer, er i celle F14."]
[null,null,"GENEREL PARTNER","VIRKSOMHED","FORSVARSADVOKAT","INTELLEKTUEL EJENDOMSRET","KONKURS","ADMINISTRATIONSMEDARBEJDERE"]
[null,"PLANLAGTE OMKOSTNINGER",{"$f":"SUBTOTAL(109,Oplysninger[GENEREL PARTNER])","v":{"v":78750,"d":"kr. 78,750.00"}},{"$f":"SUBTOTAL(109,Oplysninger[VIRKSOMHEDSADVOKAT])","v":{"v":66250,"d":"kr. 66,250.00"}},{"$f":"SUBTOTAL(109,Oplysninger[FORSVARSADVOKAT])","v":{"v":105000,"d":"kr. 105,000.00"}},{"$f":"SUBTOTAL(109,Oplysninger[ADVOKAT TIL INTELLEKTUEL EJENDOMSRET])","v":{"v":35750,"d":"kr. 35,750.00"}},{"$f":"SUBTOTAL(109,Oplysninger[KONKURSADVOKAT])","v":{"v":0,"d":"kr. 0.00"}},{"$f":"SUBTOTAL(109,Oplysninger[ADMINISTRATIONSMEDARBEJDERE])","v":{"v":66250,"d":"kr. 66,250.00"}}]
[null,"FAKTISKE OMKOSTNINGER",{"$f":"SUBTOTAL(109,Oplysninger[GENEREL PARTNER 2])","v":{"v":79275,"d":"kr. 79,275.00"}},{"$f":"SUBTOTAL(109,Oplysninger[VIRKSOMHEDSADVOKAT 2])","v":{"v":67375,"d":"kr. 67,375.00"}},{"$f":"SUBTOTAL(109,Oplysninger[FORSVARSADVOKAT 2])","v":{"v":105600,"d":"kr. 105,600.00"}},{"$f":"SUBTOTAL(109,Oplysninger[ADVOKAT TIL INTELLEKTUEL EJENDOMSRET 2])","v":{"v":34650,"d":"kr. 34,650.00"}},{"$f":"SUBTOTAL(109,Oplysninger[KONKURSADVOKAT 2])","v":{"v":0,"d":"kr. 0.00"}},{"$f":"SUBTOTAL(109,Oplysninger[ADMINISTRATIONSMEDARBEJDERE 2])","v":{"v":67000,"d":"kr. 67,000.00"}}]
[null,"PLANLAGTE TIMER",{"$f":"C16/$C$12","v":{"v":225,"d":"225.00"}},{"$f":"D16/$C$12","v":{"v":189.28571428571428,"d":"189.29"}},{"v":300,"d":"300.00"},{"v":102.14285714285714,"d":"102.14"},{"v":0,"d":"0.00"},{"v":189.28571428571428,"d":"189.29"}]
[null,"FAKTISKE TIMER",{"$f":"C17/$C$12","v":{"v":226.5,"d":"226.50"}},{"$f":"D17/$C$12","v":{"v":192.5,"d":"192.50"}},{"$f":"E17/$C$12","v":{"v":301.7142857142857,"d":"301.71"}},{"$f":"F17/$C$12","v":{"v":99,"d":"99.00"}},{"$f":"G17/$C$12","v":{"v":0,"d":"0.00"}},{"$f":"H17/$C$12","v":{"v":191.42857142857142,"d":"191.43"}}]

{"sheet":"PROJEKTOPLYSNINGER","index":2,"n_rows":10,"n_cols":25,"rows_kept":10,"merged":[[1,24,8,28]]}
["Opret projektoplysninger i dette regneark. Firmanavn opdateres automatisk i cellen til højre. Der vises nyttig vejledning i cellerne i denne kolonne. Pil ned for at starte.",{"$f":"PROJEKTPARAMETRE!B1","v":"Firmanavn"}]
["Titlen på dette regneark er i cellen til højre og tip med oplysninger er i celle Y2.",{"$f":"PROJEKTPARAMETRE!B2","v":"Projektplanlægning for advokatfirmaer"},{"$nulls":22},"OPLYSNINGER:\nHvis du vil tilføje en række, skal du markere cellen nederst til højre i tabellens brødtekst (ikke rækken Totaler) og trykke på Tab-tasten eller trykke på SKIFT og derefter F10 i tabellen, der hvor rækken skal indsættes, og så vælge Indsæt|Tabelrækker ovenfor/nedenfor.\nSørg for, at alle ubrugte rækker er slettet, da pivottabellen PROJEKTTOTALER bruger alle tabellens celler og derfor ville give forkerte resultater."]
["En meddelelse om fortrolighed er i cellen til højre.",{"$f":"PROJEKTPARAMETRE!B3","v":"Firmanavn Confidential"}]
["Angiv oplysninger i tabellen Detaljer, der starter i cellen til højre. Projekttype i tabellen Detaljer til højre opdateres automatisk fra tabellen Parametre i regnearket Projektparametre.","Projektnavn","PROJEKTTYPE","ANSLÅET START","ANSLÅET AFSLUTNING","FAKTISK START","FAKTISK AFSLUTNING","ANSLÅET ARBEJDE","FAKTISK ARBEJDE","ANSLÅET VARIGHED","FAKTISK VARIGHED","GENEREL PARTNER","VIRKSOMHEDSADVOKAT","FORSVARSADVOKAT","ADVOKAT TIL INTELLEKTUEL EJENDOMSRET","KONKURSADVOKAT","ADMINISTRATIONSMEDARBEJDERE","GENEREL PARTNER 2","VIRKSOMHEDSADVOKAT 2","FORSVARSADVOKAT 2","ADVOKAT TIL INTELLEKTUEL EJENDOMSRET 2","KONKURSADVOKAT 2","ADMINISTRATIONSMEDARBEJDERE 2"]
[null,"Projekt 1","Virksomhedsoprettelse",{"$f":"TODAY()","v":"2019-03-11"},{"$f":"TODAY()+60","v":"2019-05-10"},{"$f":"TODAY()+10","v":"2019-03-21"},{"$f":"TODAY()+65","v":"2019-05-15"},200,220,{"$f":"DAYS360(Oplysninger[[#This Row],[ANSLÅET START]],Oplysninger[[#This Row],[ANSLÅET AFSLUTNING]],FALSE)","v":59},{"$f":"DAYS360(Oplysninger[[#This Row],[FAKTISK START]],Oplysninger[[#This Row],[FAKTISK AFSLUTNING]],FALSE)","v":54},{"$f":"INDEX(Parametre[],MATCH(Oplysninger[[#This Row],[PROJEKTTYPE]],Parametre[PROJEKTTYPE],0),MATCH(Oplysninger[[#Headers],[GENEREL PARTNER]],Parametre[#Headers],0))*INDEX(PROJEKTPARAMETRE!$B$12:$H$12,1,MATCH(Oplysninger[[#Headers],[GENEREL PARTNER]],Parametre[#Headers],0))*Oplysninger[[#This Row],[ANSLÅET ARBEJDE]]","v":{"v":7000,"d":"kr. 7,000"}},{"$f":"INDEX(Parametre[],MATCH(Oplysninger[[#This Row],[PROJEKTTYPE]],Parametre[PROJEKTTYPE],0),MATCH(Oplysninger[[#Headers],[VIRKSOMHEDSADVOKAT]],Parametre[#Headers],0))*INDEX(PROJEKTPARAMETRE!$B$12:$H$12,1,MATCH(Oplysninger[[#Headers],[VIRKSOMHEDSADVOKAT]],Parametre[#Headers],0))*Oplysninger[[#This Row],[ANSLÅET ARBEJDE]]","v":{"v":20000,"d":"kr. 20,000"}},{"$f":"INDEX(Parametre[],MATCH(Oplysninger[[#This Row],[PROJEKTTYPE]],Parametre[PROJEKTTYPE],0),MATCH(Oplysninger[[#Headers],[FORSVARSADVOKAT]],Parametre[#Headers],0))*INDEX(PROJEKTPARAMETRE!$B$12:$H$12,1,MATCH(Oplysninger[[#Headers],[FORSVARSADVOKAT]],Parametre[#Headers],0))*Oplysninger[[#This Row],[ANSLÅET ARBEJDE]]","v":{"v":0,"d":"kr. 0"}},{"$f":"INDEX(Parametre[],MATCH(Oplysninger[[#This Row],[PROJEKTTYPE]],Parametre[PROJEKTTYPE],0),MATCH(Oplysninger[[#Headers],[ADVOKAT TIL INTELLEKTUEL EJENDOMSRET]],Parametre[#Headers],0))*INDEX(PROJEKTPARAMETRE!$B$12:$H$12,1,MATCH(Oplysninger[[#Headers],[ADVOKAT TIL INTELLEKTUEL EJENDOMSRET]],Parametre[#Headers],0))*Oplysninger[[#This Row],[ANSLÅET ARBEJDE]]","v":{"v":0,"d":"kr. 0"}},{"$f":"INDEX(Parametre[],MATCH(Oplysninger[[#This Row],[PROJEKTTYPE]],Parametre[PROJEKTTYPE],0),MATCH(Oplysninger[[#Headers],[KONKURSADVOKAT]],Parametre[#Headers],0))*INDEX(PROJEKTPARAMETRE!$B$12:$H$12,1,MATCH(Oplysninger[[#Headers],[KONKURSADVOKAT]],Parametre[#Headers],0))*Oplysninger[[#This Row],[ANSLÅET ARBEJDE]]","v":{"v":0,"d":"kr. 0"}},{"$f":"INDEX(Parametre[],MATCH(Oplysninger[[#This Row],[PROJEKTTYPE]],Parametre[PROJEKTTYPE],0),MATCH(Oplysninger[[#Headers],[ADMINISTRATIONSMEDARBEJDERE]],Parametre[#Headers],0))*INDEX(PROJEKTPARAMETRE!$B$12:$H$12,1,MATCH(Oplysninger[[#Headers],[ADMINISTRATIONSMEDARBEJDERE]],Parametre[#Headers],0))*Oplysninger[[#This Row],[ANSLÅET ARBEJDE]]","v":{"v":12500,"d":"kr. 12,500"}},{"$f":"INDEX(Parametre[],MATCH(Oplysninger[[#This Row],[PROJEKTTYPE]],Parametre[PROJEKTTYPE],0),MATCH(Oplysninger[[#Headers],[GENEREL PARTNER]],Parametre[#Headers],0))*INDEX(PROJEKTPARAMETRE!$B$12:$H$12,1,MATCH(Oplysninger[[#Headers],[GENEREL PARTNER]],Parametre[#Headers],0))*Oplysninger[[#This Row],[FAKTISK ARBEJDE]]","v":{"v":7700,"d":"kr. 7,700"}},{"$f":"INDEX(Parametre[],MATCH(Oplysninger[[#This Row],[PROJEKTTYPE]],Parametre[PROJEKTTYPE],0),MATCH(Oplysninger[[#Headers],[VIRKSOMHEDSADVOKAT]],Parametre[#Headers],0))*INDEX(PROJEKTPARAMETRE!$B$12:$H$12,1,MATCH(Oplysninger[[#Headers],[VIRKSOMHEDSADVOKAT]],Parametre[#Headers],0))*Oplysninger[[#This Row],[FAKTISK ARBEJDE]]","v":{"v":22000,"d":"kr. 22,000"}},{"$f":"INDEX(Parametre[],MATCH(Oplysninger[[#This Row],[PROJEKTTYPE]],Parametre[PROJEKTTYPE],0),MATCH(Oplysninger[[#Headers],[FORSVARSADVOKAT]],Parametre[#Headers],0))*INDEX(PROJEKTPARAMETRE!$B$12:$H$12,1,MATCH(Oplysninger[[#Headers],[FORSVARSADVOKAT]],Parametre[#Headers],0))*Oplysninger[[#This Row],[FAKTISK ARBEJDE]]","v":{"v":0,"d":"kr. 0"}},{"$f":"INDEX(Parametre[],MATCH(Oplysninger[[#This Row],[PROJEKTTYPE]],Parametre[PROJEKTTYPE],0),MATCH(Oplysninger[[#Headers],[ADVOKAT TIL INTELLEKTUEL EJENDOMSRET]],Parametre[#Headers],0))*INDEX(PROJEKTPARAMETRE!$B$12:$H$12,1,MATCH(Oplysninger[[#Headers],[ADVOKAT TIL INTELLEKTUEL EJENDOMSRET]],Parametre[#Headers],0))*Oplysninger[[#This Row],[FAKTISK ARBEJDE]]","v":{"v":0,"d":"kr. 0"}},{"$f":"INDEX(Parametre[],MATCH(Oplysninger[[#This Row],[PROJEKTTYPE]],Parametre[PROJEKTTYPE],0),MATCH(Oplysninger[[#Headers],[KONKURSADVOKAT]],Parametre[#Headers],0))*INDEX(PROJEKTPARAMETRE!$B$12:$H$12,1,MATCH(Oplysninger[[#Headers],[KONKURSADVOKAT]],Parametre[#Headers],0))*Oplysninger[[#This Row],[FAKTISK ARBEJDE]]","v":{"v":0,"d":"kr. 0"}},{"$f":"INDEX(Parametre[],MATCH(Oplysninger[[#This Row],[PROJEKTTYPE]],Parametre[PROJEKTTYPE],0),MATCH(Oplysninger[[#Headers],[ADMINISTRATIONSMEDARBEJDERE]],Parametre[#Headers],0))*INDEX(PROJEKTPARAMETRE!$B$12:$H$12,1,MATCH(Oplysninger[[#Headers],[ADMINISTRATIONSMEDARBEJDERE]],Parametre[#Headers],0))*Oplysninger[[#This Row],[FAKTISK ARBEJDE]]","v":{"v":13750,"d":"kr. 13,750"}}]
[null,"Projekt 2","Virksomhedserhvervelse",{"$f":"TODAY()+30","v":"2019-04-10"},{"$f":"TODAY()+100","v":"2019-06-19"},{"$f":"TODAY()+40","v":"2019-04-20"},{"$f":"TODAY()+110","v":"2019-06-29"},400,390,{"$f":"DAYS360(Oplysninger[[#This Row],[ANSLÅET START]],Oplysninger[[#This Row],[ANSLÅET AFSLUTNING]],FALSE)","v":69},{"$f":"DAYS360(Oplysninger[[#This Row],[FAKTISK START]],Oplysninger[[#This Row],[FAKTISK AFSLUTNING]],FALSE)","v":69},{"$f":"INDEX(Parametre[],MATCH(Oplysninger[[#This Row],[PROJEKTTYPE]],Parametre[PROJEKTTYPE],0),MATCH(Oplysninger[[#Headers],[GENEREL PARTNER]],Parametre[#Headers],0))*INDEX(PROJEKTPARAMETRE!$B$12:$H$12,1,MATCH(Oplysninger[[#Headers],[GENEREL PARTNER]],Parametre[#Headers],0))*Oplysninger[[#This Row],[ANSLÅET ARBEJDE]]","v":{"v":14000,"d":"kr. 14,000"}},{"$f":"INDEX(Parametre[],MATCH(Oplysninger[[#This Row],[PROJEKTTYPE]],Parametre[PROJEKTTYPE],0),MATCH(Oplysninger[[#Headers],[VIRKSOMHEDSADVOKAT]],Parametre[#Headers],0))*INDEX(PROJEKTPARAMETRE!$B$12:$H$12,1,MATCH(Oplysninger[[#Headers],[VIRKSOMHEDSADVOKAT]],Parametre[#Headers],0))*Oplysninger[[#This Row],[ANSLÅET ARBEJDE]]","v":{"v":40000,"d":"kr. 40,000"}},{"$f":"INDEX(Parametre[],MATCH(Oplysninger[[#This Row],[PROJEKTTYPE]],Parametre[PROJEKTTYPE],0),MATCH(Oplysninger[[#Headers],[FORSVARSADVOKAT]],Parametre[#Headers],0))*INDEX(PROJEKTPARAMETRE!$B$12:$H$12,1,MATCH(Oplysninger[[#Headers],[FORSVARSADVOKAT]],Parametre[#Headers],0))*Oplysninger[[#This Row],[ANSLÅET ARBEJDE]]","v":{"v":0,"d":"kr. 0"}},{"$f":"INDEX(Parametre[],MATCH(Oplysninger[[#This Row],[PROJEKTTYPE]],Parametre[PROJEKTTYPE],0),MATCH(Oplysninger[[#Headers],[ADVOKAT TIL INTELLEKTUEL EJENDOMSRET]],Parametre[#Headers],0))*INDEX(PROJEKTPARAMETRE!$B$12:$H$12,1,MATCH(Oplysninger[[#Headers],[ADVOKAT TIL INTELLEKTUEL EJENDOMSRET]],Parametre[#Headers],0))*Oplysninger[[#This Row],[ANSLÅET ARBEJDE]]","v":{"v":11000,"d":"kr. 11,000"}},{"$f":"INDEX(Parametre[],MATCH(Oplysninger[[#This Row],[PROJEKTTYPE]],Parametre[PROJEKTTYPE],0),MATCH(Oplysninger[[#Headers],[KONKURSADVOKAT]],Parametre[#Headers],0))*INDEX(PROJEKTPARAMETRE!$B$12:$H$12,1,MATCH(Oplysninger[[#Headers],[KONKURSADVOKAT]],Parametre[#Headers],0))*Oplysninger[[#This Row],[ANSLÅET ARBEJDE]]","v":{"v":0,"d":"kr. 0"}},{"$f":"INDEX(Parametre[],MATCH(Oplysninger[[#This Row],[PROJEKTTYPE]],Parametre[PROJEKTTYPE],0),MATCH(Oplysninger[[#Headers],[ADMINISTRATIONSMEDARBEJDERE]],Parametre[#Headers],0))*INDEX(PROJEKTPARAMETRE!$B$12:$H$12,1,MATCH(Oplysninger[[#Headers],[ADMINISTRATIONSMEDARBEJDERE]],Parametre[#Headers],0))*Oplysninger[[#This Row],[ANSLÅET ARBEJDE]]","v":{"v":20000,"d":"kr. 20,000"}},{"$f":"INDEX(Parametre[],MATCH(Oplysninger[[#This Row],[PROJEKTTYPE]],Parametre[PROJEKTTYPE],0),MATCH(Oplysninger[[#Headers],[GENEREL PARTNER]],Parametre[#Headers],0))*INDEX(PROJEKTPARAMETRE!$B$12:$H$12,1,MATCH(Oplysninger[[#Headers],[GENEREL PARTNER]],Parametre[#Headers],0))*Oplysninger[[#This Row],[FAKTISK ARBEJDE]]","v":{"v":13650,"d":"kr. 13,650"}},{"$f":"INDEX(Parametre[],MATCH(Oplysninger[[#This Row],[PROJEKTTYPE]],Parametre[PROJEKTTYPE],0),MATCH(Oplysninger[[#Headers],[VIRKSOMHEDSADVOKAT]],Parametre[#Headers],0))*INDEX(PROJEKTPARAMETRE!$B$12:$H$12,1,MATCH(Oplysninger[[#Headers],[VIRKSOMHEDSADVOKAT]],Parametre[#Headers],0))*Oplysninger[[#This Row],[FAKTISK ARBEJDE]]","v":{"v":39000,"d":"kr. 39,000"}},{"$f":"INDEX(Parametre[],MATCH(Oplysninger[[#This Row],[PROJEKTTYPE]],Parametre[PROJEKTTYPE],0),MATCH(Oplysninger[[#Headers],[FORSVARSADVOKAT]],Parametre[#Headers],0))*INDEX(PROJEKTPARAMETRE!$B$12:$H$12,1,MATCH(Oplysninger[[#Headers],[FORSVARSADVOKAT]],Parametre[#Headers],0))*Oplysninger[[#This Row],[FAKTISK ARBEJDE]]","v":{"v":0,"d":"kr. 0"}},{"$f":"INDEX(Parametre[],MATCH(Oplysninger[[#This Row],[PROJEKTTYPE]],Parametre[PROJEKTTYPE],0),MATCH(Oplysninger[[#Headers],[ADVOKAT TIL INTELLEKTUEL EJENDOMSRET]],Parametre[#Headers],0))*INDEX(PROJEKTPARAMETRE!$B$12:$H$12,1,MATCH(Oplysninger[[#Headers],[ADVOKAT TIL INTELLEKTUEL EJENDOMSRET]],Parametre[#Headers],0))*Oplysninger[[#This Row],[FAKTISK ARBEJDE]]","v":{"v":10725,"d":"kr. 10,725"}},{"$f":"INDEX(Parametre[],MATCH(Oplysninger[[#This Row],[PROJEKTTYPE]],Parametre[PROJEKTTYPE],0),MATCH(Oplysninger[[#Headers],[KONKURSADVOKAT]],Parametre[#Headers],0))*INDEX(PROJEKTPARAMETRE!$B$12:$H$12,1,MATCH(Oplysninger[[#Headers],[KONKURSADVOKAT]],Parametre[#Headers],0))*Oplysninger[[#This Row],[FAKTISK ARBEJDE]]","v":{"v":0,"d":"kr. 0"}},{"$f":"INDEX(Parametre[],MATCH(Oplysninger[[#This Row],[PROJEKTTYPE]],Parametre[PROJEKTTYPE],0),MATCH(Oplysninger[[#Headers],[ADMINISTRATIONSMEDARBEJDERE]],Parametre[#Headers],0))*INDEX(PROJEKTPARAMETRE!$B$12:$H$12,1,MATCH(Oplysninger[[#Headers],[ADMINISTRATIONSMEDARBEJDERE]],Parametre[#Headers],0))*Oplysninger[[#This Row],[FAKTISK ARBEJDE]]","v":{"v":19500,"d":"kr. 19,500"}}]
[null,"Projekt 3","Produktansvarsforsvar",{"$f":"TODAY()+150","v":"2019-08-08"},{"$f":"TODAY()+150","v":"2019-08-08"},{"$f":"TODAY()+150","v":"2019-08-08"},{"$f":"TODAY()+170","v":"2019-08-28"},500,500,{"$f":"DAYS360(Oplysninger[[#This Row],[ANSLÅET START]],Oplysninger[[#This Row],[ANSLÅET AFSLUTNING]],FALSE)","v":0},{"$f":"DAYS360(Oplysninger[[#This Row],[FAKTISK START]],Oplysninger[[#This Row],[FAKTISK AFSLUTNING]],FALSE)","v":20},{"$f":"INDEX(Parametre[],MATCH(Oplysninger[[#This Row],[PROJEKTTYPE]],Parametre[PROJEKTTYPE],0),MATCH(Oplysninger[[#Headers],[GENEREL PARTNER]],Parametre[#Headers],0))*INDEX(PROJEKTPARAMETRE!$B$12:$H$12,1,MATCH(Oplysninger[[#Headers],[GENEREL PARTNER]],Parametre[#Headers],0))*Oplysninger[[#This Row],[ANSLÅET ARBEJDE]]","v":{"v":35000,"d":"kr. 35,000"}},{"$f":"INDEX(Parametre[],MATCH(Oplysninger[[#This Row],[PROJEKTTYPE]],Parametre[PROJEKTTYPE],0),MATCH(Oplysninger[[#Headers],[VIRKSOMHEDSADVOKAT]],Parametre[#Headers],0))*INDEX(PROJEKTPARAMETRE!$B$12:$H$12,1,MATCH(Oplysninger[[#Headers],[VIRKSOMHEDSADVOKAT]],Parametre[#Headers],0))*Oplysninger[[#This Row],[ANSLÅET ARBEJDE]]","v":{"v":0,"d":"kr. 0"}},{"$f":"INDEX(Parametre[],MATCH(Oplysninger[[#This Row],[PROJEKTTYPE]],Parametre[PROJEKTTYPE],0),MATCH(Oplysninger[[#Headers],[FORSVARSADVOKAT]],Parametre[#Headers],0))*INDEX(PROJEKTPARAMETRE!$B$12:$H$12,1,MATCH(Oplysninger[[#Headers],[FORSVARSADVOKAT]],Parametre[#Headers],0))*Oplysninger[[#This Row],[ANSLÅET ARBEJDE]]","v":{"v":75000,"d":"kr. 75,000"}},{"$f":"INDEX(Parametre[],MATCH(Oplysninger[[#This Row],[PROJEKTTYPE]],Parametre[PROJEKTTYPE],0),MATCH(Oplysninger[[#Headers],[ADVOKAT TIL INTELLEKTUEL EJENDOMSRET]],Parametre[#Headers],0))*INDEX(PROJEKTPARAMETRE!$B$12:$H$12,1,MATCH(Oplysninger[[#Headers],[ADVOKAT TIL INTELLEKTUEL EJENDOMSRET]],Parametre[#Headers],0))*Oplysninger[[#This Row],[ANSLÅET ARBEJDE]]","v":{"v":0,"d":"kr. 0"}},{"$f":"INDEX(Parametre[],MATCH(Oplysninger[[#This Row],[PROJEKTTYPE]],Parametre[PROJEKTTYPE],0),MATCH(Oplysninger[[#Headers],[KONKURSADVOKAT]],Parametre[#Headers],0))*INDEX(PROJEKTPARAMETRE!$B$12:$H$12,1,MATCH(Oplysninger[[#Headers],[KONKURSADVOKAT]],Parametre[#Headers],0))*Oplysninger[[#This Row],[ANSLÅET ARBEJDE]]","v":{"v":0,"d":"kr. 0"}},{"$f":"INDEX(Parametre[],MATCH(Oplysninger[[#This Row],[PROJEKTTYPE]],Parametre[PROJEKTTYPE],0),MATCH(Oplysninger[[#Headers],[ADMINISTRATIONSMEDARBEJDERE]],Parametre[#Headers],0))*INDEX(PROJEKTPARAMETRE!$B$12:$H$12,1,MATCH(Oplysninger[[#Headers],[ADMINISTRATIONSMEDARBEJDERE]],Parametre[#Headers],0))*Oplysninger[[#This Row],[ANSLÅET ARBEJDE]]","v":{"v":18750,"d":"kr. 18,750"}},{"$f":"INDEX(Parametre[],MATCH(Oplysninger[[#This Row],[PROJEKTTYPE]],Parametre[PROJEKTTYPE],0),MATCH(Oplysninger[[#Headers],[GENEREL PARTNER]],Parametre[#Headers],0))*INDEX(PROJEKTPARAMETRE!$B$12:$H$12,1,MATCH(Oplysninger[[#Headers],[GENEREL PARTNER]],Parametre[#Headers],0))*Oplysninger[[#This Row],[FAKTISK ARBEJDE]]","v":{"v":35000,"d":"kr. 35,000"}},{"$f":"INDEX(Parametre[],MATCH(Oplysninger[[#This Row],[PROJEKTTYPE]],Parametre[PROJEKTTYPE],0),MATCH(Oplysninger[[#Headers],[VIRKSOMHEDSADVOKAT]],Parametre[#Headers],0))*INDEX(PROJEKTPARAMETRE!$B$12:$H$12,1,MATCH(Oplysninger[[#Headers],[VIRKSOMHEDSADVOKAT]],Parametre[#Headers],0))*Oplysninger[[#This Row],[FAKTISK ARBEJDE]]","v":{"v":0,"d":"kr. 0"}},{"$f":"INDEX(Parametre[],MATCH(Oplysninger[[#This Row],[PROJEKTTYPE]],Parametre[PROJEKTTYPE],0),MATCH(Oplysninger[[#Headers],[FORSVARSADVOKAT]],Parametre[#Headers],0))*INDEX(PROJEKTPARAMETRE!$B$12:$H$12,1,MATCH(Oplysninger[[#Headers],[FORSVARSADVOKAT]],Parametre[#Headers],0))*Oplysninger[[#This Row],[FAKTISK ARBEJDE]]","v":{"v":75000,"d":"kr. 75,000"}},{"$f":"INDEX(Parametre[],MATCH(Oplysninger[[#This Row],[PROJEKTTYPE]],Parametre[PROJEKTTYPE],0),MATCH(Oplysninger[[#Headers],[ADVOKAT TIL INTELLEKTUEL EJENDOMSRET]],Parametre[#Headers],0))*INDEX(PROJEKTPARAMETRE!$B$12:$H$12,1,MATCH(Oplysninger[[#Headers],[ADVOKAT TIL INTELLEKTUEL EJENDOMSRET]],Parametre[#Headers],0))*Oplysninger[[#This Row],[FAKTISK ARBEJDE]]","v":{"v":0,"d":"kr. 0"}},{"$f":"INDEX(Parametre[],MATCH(Oplysninger[[#This Row],[PROJEKTTYPE]],Parametre[PROJEKTTYPE],0),MATCH(Oplysninger[[#Headers],[KONKURSADVOKAT]],Parametre[#Headers],0))*INDEX(PROJEKTPARAMETRE!$B$12:$H$12,1,MATCH(Oplysninger[[#Headers],[KONKURSADVOKAT]],Parametre[#Headers],0))*Oplysninger[[#This Row],[FAKTISK ARBEJDE]]","v":{"v":0,"d":"kr. 0"}},{"$f":"INDEX(Parametre[],MATCH(Oplysninger[[#This Row],[PROJEKTTYPE]],Parametre[PROJEKTTYPE],0),MATCH(Oplysninger[[#Headers],[ADMINISTRATIONSMEDARBEJDERE]],Parametre[#Headers],0))*INDEX(PROJEKTPARAMETRE!$B$12:$H$12,1,MATCH(Oplysninger[[#Headers],[ADMINISTRATIONSMEDARBEJDERE]],Parametre[#Headers],0))*Oplysninger[[#This Row],[FAKTISK ARBEJDE]]","v":{"v":18750,"d":"kr. 18,750"}}]
[null,"Projekt 4","Patentansøgning",{"$f":"TODAY()+200","v":"2019-09-27"},{"$f":"TODAY()+230","v":"2019-10-27"},{"$f":"TODAY()+230","v":"2019-10-27"},{"$f":"TODAY()+230","v":"2019-10-27"},150,145,{"$f":"DAYS360(Oplysninger[[#This Row],[ANSLÅET START]],Oplysninger[[#This Row],[ANSLÅET AFSLUTNING]],FALSE)","v":30},{"$f":"DAYS360(Oplysninger[[#This Row],[FAKTISK START]],Oplysninger[[#This Row],[FAKTISK AFSLUTNING]],FALSE)","v":0},{"$f":"INDEX(Parametre[],MATCH(Oplysninger[[#This Row],[PROJEKTTYPE]],Parametre[PROJEKTTYPE],0),MATCH(Oplysninger[[#Headers],[GENEREL PARTNER]],Parametre[#Headers],0))*INDEX(PROJEKTPARAMETRE!$B$12:$H$12,1,MATCH(Oplysninger[[#Headers],[GENEREL PARTNER]],Parametre[#Headers],0))*Oplysninger[[#This Row],[ANSLÅET ARBEJDE]]","v":{"v":5250,"d":"kr. 5,250"}},{"$f":"INDEX(Parametre[],MATCH(Oplysninger[[#This Row],[PROJEKTTYPE]],Parametre[PROJEKTTYPE],0),MATCH(Oplysninger[[#Headers],[VIRKSOMHEDSADVOKAT]],Parametre[#Headers],0))*INDEX(PROJEKTPARAMETRE!$B$12:$H$12,1,MATCH(Oplysninger[[#Headers],[VIRKSOMHEDSADVOKAT]],Parametre[#Headers],0))*Oplysninger[[#This Row],[ANSLÅET ARBEJDE]]","v":{"v":0,"d":"kr. 0"}},{"$f":"INDEX(Parametre[],MATCH(Oplysninger[[#This Row],[PROJEKTTYPE]],Parametre[PROJEKTTYPE],0),MATCH(Oplysninger[[#Headers],[FORSVARSADVOKAT]],Parametre[#Headers],0))*INDEX(PROJEKTPARAMETRE!$B$12:$H$12,1,MATCH(Oplysninger[[#Headers],[FORSVARSADVOKAT]],Parametre[#Headers],0))*Oplysninger[[#This Row],[ANSLÅET ARBEJDE]]","v":{"v":0,"d":"kr. 0"}},{"$f":"INDEX(Parametre[],MATCH(Oplysninger[[#This Row],[PROJEKTTYPE]],Parametre[PROJEKTTYPE],0),MATCH(Oplysninger[[#Headers],[ADVOKAT TIL INTELLEKTUEL EJENDOMSRET]],Parametre[#Headers],0))*INDEX(PROJEKTPARAMETRE!$B$12:$H$12,1,MATCH(Oplysninger[[#Headers],[ADVOKAT TIL INTELLEKTUEL EJENDOMSRET]],Parametre[#Headers],0))*Oplysninger[[#This Row],[ANSLÅET ARBEJDE]]","v":{"v":24750,"d":"kr. 24,750"}},{"$f":"INDEX(Parametre[],MATCH(Oplysninger[[#This Row],[PROJEKTTYPE]],Parametre[PROJEKTTYPE],0),MATCH(Oplysninger[[#Headers],[KONKURSADVOKAT]],Parametre[#Headers],0))*INDEX(PROJEKTPARAMETRE!$B$12:$H$12,1,MATCH(Oplysninger[[#Headers],[KONKURSADVOKAT]],Parametre[#Headers],0))*Oplysninger[[#This Row],[ANSLÅET ARBEJDE]]","v":{"v":0,"d":"kr. 0"}},{"$f":"INDEX(Parametre[],MATCH(Oplysninger[[#This Row],[PROJEKTTYPE]],Parametre[PROJEKTTYPE],0),MATCH(Oplysninger[[#Headers],[ADMINISTRATIONSMEDARBEJDERE]],Parametre[#Headers],0))*INDEX(PROJEKTPARAMETRE!$B$12:$H$12,1,MATCH(Oplysninger[[#Headers],[ADMINISTRATIONSMEDARBEJDERE]],Parametre[#Headers],0))*Oplysninger[[#This Row],[ANSLÅET ARBEJDE]]","v":{"v":5625,"d":"kr. 5,625"}},{"$f":"INDEX(Parametre[],MATCH(Oplysninger[[#This Row],[PROJEKTTYPE]],Parametre[PROJEKTTYPE],0),MATCH(Oplysninger[[#Headers],[GENEREL PARTNER]],Parametre[#Headers],0))*INDEX(PROJEKTPARAMETRE!$B$12:$H$12,1,MATCH(Oplysninger[[#Headers],[GENEREL PARTNER]],Parametre[#Headers],0))*Oplysninger[[#This Row],[FAKTISK ARBEJDE]]","v":{"v":5075,"d":"kr. 5,075"}},{"$f":"INDEX(Parametre[],MATCH(Oplysninger[[#This Row],[PROJEKTTYPE]],Parametre[PROJEKTTYPE],0),MATCH(Oplysninger[[#Headers],[VIRKSOMHEDSADVOKAT]],Parametre[#Headers],0))*INDEX(PROJEKTPARAMETRE!$B$12:$H$12,1,MATCH(Oplysninger[[#Headers],[VIRKSOMHEDSADVOKAT]],Parametre[#Headers],0))*Oplysninger[[#This Row],[FAKTISK ARBEJDE]]","v":{"v":0,"d":"kr. 0"}},{"$f":"INDEX(Parametre[],MATCH(Oplysninger[[#This Row],[PROJEKTTYPE]],Parametre[PROJEKTTYPE],0),MATCH(Oplysninger[[#Headers],[FORSVARSADVOKAT]],Parametre[#Headers],0))*INDEX(PROJEKTPARAMETRE!$B$12:$H$12,1,MATCH(Oplysninger[[#Headers],[FORSVARSADVOKAT]],Parametre[#Headers],0))*Oplysninger[[#This Row],[FAKTISK ARBEJDE]]","v":{"v":0,"d":"kr. 0"}},{"$f":"INDEX(Parametre[],MATCH(Oplysninger[[#This Row],[PROJEKTTYPE]],Parametre[PROJEKTTYPE],0),MATCH(Oplysninger[[#Headers],[ADVOKAT TIL INTELLEKTUEL EJENDOMSRET]],Parametre[#Headers],0))*INDEX(PROJEKTPARAMETRE!$B$12:$H$12,1,MATCH(Oplysninger[[#Headers],[ADVOKAT TIL INTELLEKTUEL EJENDOMSRET]],Parametre[#Headers],0))*Oplysninger[[#This Row],[FAKTISK ARBEJDE]]","v":{"v":23925,"d":"kr. 23,925"}},{"$f":"INDEX(Parametre[],MATCH(Oplysninger[[#This Row],[PROJEKTTYPE]],Parametre[PROJEKTTYPE],0),MATCH(Oplysninger[[#Headers],[KONKURSADVOKAT]],Parametre[#Headers],0))*INDEX(PROJEKTPARAMETRE!$B$12:$H$12,1,MATCH(Oplysninger[[#Headers],[KONKURSADVOKAT]],Parametre[#Headers],0))*Oplysninger[[#This Row],[FAKTISK ARBEJDE]]","v":{"v":0,"d":"kr. 0"}},{"$f":"INDEX(Parametre[],MATCH(Oplysninger[[#This Row],[PROJEKTTYPE]],Parametre[PROJEKTTYPE],0),MATCH(Oplysninger[[#Headers],[ADMINISTRATIONSMEDARBEJDERE]],Parametre[#Headers],0))*INDEX(PROJEKTPARAMETRE!$B$12:$H$12,1,MATCH(Oplysninger[[#Headers],[ADMINISTRATIONSMEDARBEJDERE]],Parametre[#Headers],0))*Oplysninger[[#This Row],[FAKTISK ARBEJDE]]","v":{"v":5437.5,"d":"kr. 5,438"}}]
[null,"Projekt 5","Medarbejdersøgsmål",{"$f":"TODAY()+220","v":"2019-10-17"},{"$f":"TODAY()+250","v":"2019-11-16"},{"$f":"TODAY()+230","v":"2019-10-27"},{"$f":"TODAY()+259","v":"2019-11-25"},250,255,{"$f":"DAYS360(Oplysninger[[#This Row],[ANSLÅET START]],Oplysninger[[#This Row],[ANSLÅET AFSLUTNING]],FALSE)","v":29},{"$f":"DAYS360(Oplysninger[[#This Row],[FAKTISK START]],Oplysninger[[#This Row],[FAKTISK AFSLUTNING]],FALSE)","v":28},{"$f":"INDEX(Parametre[],MATCH(Oplysninger[[#This Row],[PROJEKTTYPE]],Parametre[PROJEKTTYPE],0),MATCH(Oplysninger[[#Headers],[GENEREL PARTNER]],Parametre[#Headers],0))*INDEX(PROJEKTPARAMETRE!$B$12:$H$12,1,MATCH(Oplysninger[[#Headers],[GENEREL PARTNER]],Parametre[#Headers],0))*Oplysninger[[#This Row],[ANSLÅET ARBEJDE]]","v":{"v":17500,"d":"kr. 17,500"}},{"$f":"INDEX(Parametre[],MATCH(Oplysninger[[#This Row],[PROJEKTTYPE]],Parametre[PROJEKTTYPE],0),MATCH(Oplysninger[[#Headers],[VIRKSOMHEDSADVOKAT]],Parametre[#Headers],0))*INDEX(PROJEKTPARAMETRE!$B$12:$H$12,1,MATCH(Oplysninger[[#Headers],[VIRKSOMHEDSADVOKAT]],Parametre[#Headers],0))*Oplysninger[[#This Row],[ANSLÅET ARBEJDE]]","v":{"v":6250,"d":"kr. 6,250"}},{"$f":"INDEX(Parametre[],MATCH(Oplysninger[[#This Row],[PROJEKTTYPE]],Parametre[PROJEKTTYPE],0),MATCH(Oplysninger[[#Headers],[FORSVARSADVOKAT]],Parametre[#Headers],0))*INDEX(PROJEKTPARAMETRE!$B$12:$H$12,1,MATCH(Oplysninger[[#Headers],[FORSVARSADVOKAT]],Parametre[#Headers],0))*Oplysninger[[#This Row],[ANSLÅET ARBEJDE]]","v":{"v":30000,"d":"kr. 30,000"}},{"$f":"INDEX(Parametre[],MATCH(Oplysninger[[#This Row],[PROJEKTTYPE]],Parametre[PROJEKTTYPE],0),MATCH(Oplysninger[[#Headers],[ADVOKAT TIL INTELLEKTUEL EJENDOMSRET]],Parametre[#Headers],0))*INDEX(PROJEKTPARAMETRE!$B$12:$H$12,1,MATCH(Oplysninger[[#Headers],[ADVOKAT TIL INTELLEKTUEL EJENDOMSRET]],Parametre[#Headers],0))*Oplysninger[[#This Row],[ANSLÅET ARBEJDE]]","v":{"v":0,"d":"kr. 0"}},{"$f":"INDEX(Parametre[],MATCH(Oplysninger[[#This Row],[PROJEKTTYPE]],Parametre[PROJEKTTYPE],0),MATCH(Oplysninger[[#Headers],[KONKURSADVOKAT]],Parametre[#Headers],0))*INDEX(PROJEKTPARAMETRE!$B$12:$H$12,1,MATCH(Oplysninger[[#Headers],[KONKURSADVOKAT]],Parametre[#Headers],0))*Oplysninger[[#This Row],[ANSLÅET ARBEJDE]]","v":{"v":0,"d":"kr. 0"}},{"$f":"INDEX(Parametre[],MATCH(Oplysninger[[#This Row],[PROJEKTTYPE]],Parametre[PROJEKTTYPE],0),MATCH(Oplysninger[[#Headers],[ADMINISTRATIONSMEDARBEJDERE]],Parametre[#Headers],0))*INDEX(PROJEKTPARAMETRE!$B$12:$H$12,1,MATCH(Oplysninger[[#Headers],[ADMINISTRATIONSMEDARBEJDERE]],Parametre[#Headers],0))*Oplysninger[[#This Row],[ANSLÅET ARBEJDE]]","v":{"v":9375,"d":"kr. 9,375"}},{"$f":"INDEX(Parametre[],MATCH(Oplysninger[[#This Row],[PROJEKTTYPE]],Parametre[PROJEKTTYPE],0),MATCH(Oplysninger[[#Headers],[GENEREL PARTNER]],Parametre[#Headers],0))*INDEX(PROJEKTPARAMETRE!$B$12:$H$12,1,MATCH(Oplysninger[[#Headers],[GENEREL PARTNER]],Parametre[#Headers],0))*Oplysninger[[#This Row],[FAKTISK ARBEJDE]]","v":{"v":17850,"d":"kr. 17,850"}},{"$f":"INDEX(Parametre[],MATCH(Oplysninger[[#This Row],[PROJEKTTYPE]],Parametre[PROJEKTTYPE],0),MATCH(Oplysninger[[#Headers],[VIRKSOMHEDSADVOKAT]],Parametre[#Headers],0))*INDEX(PROJEKTPARAMETRE!$B$12:$H$12,1,MATCH(Oplysninger[[#Headers],[VIRKSOMHEDSADVOKAT]],Parametre[#Headers],0))*Oplysninger[[#This Row],[FAKTISK ARBEJDE]]","v":{"v":6375,"d":"kr. 6,375"}},{"$f":"INDEX(Parametre[],MATCH(Oplysninger[[#This Row],[PROJEKTTYPE]],Parametre[PROJEKTTYPE],0),MATCH(Oplysninger[[#Headers],[FORSVARSADVOKAT]],Parametre[#Headers],0))*INDEX(PROJEKTPARAMETRE!$B$12:$H$12,1,MATCH(Oplysninger[[#Headers],[FORSVARSADVOKAT]],Parametre[#Headers],0))*Oplysninger[[#This Row],[FAKTISK ARBEJDE]]","v":{"v":30600,"d":"kr. 30,600"}},{"$f":"INDEX(Parametre[],MATCH(Oplysninger[[#This Row],[PROJEKTTYPE]],Parametre[PROJEKTTYPE],0),MATCH(Oplysninger[[#Headers],[ADVOKAT TIL INTELLEKTUEL EJENDOMSRET]],Parametre[#Headers],0))*INDEX(PROJEKTPARAMETRE!$B$12:$H$12,1,MATCH(Oplysninger[[#Headers],[ADVOKAT TIL INTELLEKTUEL EJENDOMSRET]],Parametre[#Headers],0))*Oplysninger[[#This Row],[FAKTISK ARBEJDE]]","v":{"v":0,"d":"kr. 0"}},{"$f":"INDEX(Parametre[],MATCH(Oplysninger[[#This Row],[PROJEKTTYPE]],Parametre[PROJEKTTYPE],0),MATCH(Oplysninger[[#Headers],[KONKURSADVOKAT]],Parametre[#Headers],0))*INDEX(PROJEKTPARAMETRE!$B$12:$H$12,1,MATCH(Oplysninger[[#Headers],[KONKURSADVOKAT]],Parametre[#Headers],0))*Oplysninger[[#This Row],[FAKTISK ARBEJDE]]","v":{"v":0,"d":"kr. 0"}},{"$f":"INDEX(Parametre[],MATCH(Oplysninger[[#This Row],[PROJEKTTYPE]],Parametre[PROJEKTTYPE],0),MATCH(Oplysninger[[#Headers],[ADMINISTRATIONSMEDARBEJDERE]],Parametre[#Headers],0))*INDEX(PROJEKTPARAMETRE!$B$12:$H$12,1,MATCH(Oplysninger[[#Headers],[ADMINISTRATIONSMEDARBEJDERE]],Parametre[#Headers],0))*Oplysninger[[#This Row],[FAKTISK ARBEJDE]]","v":{"v":9562.5,"d":"kr. 9,563"}}]
[null,"Total",{"$nulls":5},{"$f":"SUBTOTAL(109,Oplysninger[ANSLÅET ARBEJDE])","v":1500},{"$f":"SUBTOTAL(109,Oplysninger[FAKTISK ARBEJDE])","v":1510},{"$f":"SUBTOTAL(109,Oplysninger[ANSLÅET VARIGHED])","v":187},{"$f":"SUBTOTAL(109,Oplysninger[FAKTISK VARIGHED])","v":171}]

{"sheet":"PROJEKTTOTALER","index":3,"n_rows":11,"n_cols":16,"rows_kept":11,"merged":[[3,2,3,7],[3,8,3,13],[3,15,14,19]]}
["Få Projekttotaler i dette regneark. Firmanavn opdateres automatisk i cellen til højre. Der vises nyttig vejledning i cellerne i denne kolonne. Pil ned for at starte.",{"$f":"PROJEKTPARAMETRE!B1","v":"Firmanavn"}]
["Titlen på dette regneark vises i cellen til højre.",{"$f":"PROJEKTPARAMETRE!B2","v":"Projektplanlægning for advokatfirmaer"}]
["En meddelelse om fortrolighed er i cellen til højre.",{"$f":"PROJEKTPARAMETRE!B3","v":"Firmanavn Confidential"}]
["Mærkaten Anslået er i celle C4, mærkaten Faktisk i celle I4 og Oplysningstip i celle P4.",null,"ANSLÅET",{"$nulls":5},"FAKTISK",{"$nulls":6},"OPLYSNINGER: \nDenne pivottabel opdateres ikke automatisk.  Hvis du vil opdatere den, skal du markere den (en vilkårlig celle i Pivottabellen) og vælge Opdater på båndfanen PIVOTTABELVÆRKTØJER | ANALYSÉR.  Eller tryk på SKIFT+F10 ved at markere pivottabellen og vælge Opdater."]
["Pivottabellen, der starter i celle C6, opdateres automatisk.","Projektnavn","GENEREL PARTNER ","VIRKSOMHED ","FORSVARSADVOKAT ","INTELLEKTUEL EJENDOM ","KONKURS ","ADMINISTRATIONSMEDARBEJDERE ","GENEREL PARTNER  ","VIRKSOMHED","FORSVARSADVOKAT  ","KONKURS","INTELLEKTUEL EJENDOM","ADMINISTRATIONSMEDARBEJDERE  "]
[null,"Projekt 1",{"v":7000,"d":"kr. 7,000.00"},{"v":20000,"d":"kr. 20,000.00"},{"v":0,"d":"kr. 0.00"},{"v":0,"d":"kr. 0.00"},{"v":0,"d":"kr. 0.00"},{"v":12500,"d":"kr. 12,500.00"},{"v":7700,"d":"kr. 7,700.00"},{"v":22000,"d":"kr. 22,000.00"},{"v":0,"d":"kr. 0.00"},{"v":0,"d":"kr. 0.00"},{"v":0,"d":"kr. 0.00"},{"v":13750,"d":"kr. 13,750.00"}]
[null,"Projekt 2",{"v":14000,"d":"kr. 14,000.00"},{"v":40000,"d":"kr. 40,000.00"},{"v":0,"d":"kr. 0.00"},{"v":11000,"d":"kr. 11,000.00"},{"v":0,"d":"kr. 0.00"},{"v":20000,"d":"kr. 20,000.00"},{"v":13650,"d":"kr. 13,650.00"},{"v":39000,"d":"kr. 39,000.00"},{"v":0,"d":"kr. 0.00"},{"v":10725,"d":"kr. 10,725.00"},{"v":0,"d":"kr. 0.00"},{"v":19500,"d":"kr. 19,500.00"}]
[null,"Projekt 3",{"v":35000,"d":"kr. 35,000.00"},{"v":0,"d":"kr. 0.00"},{"v":75000,"d":"kr. 75,000.00"},{"v":0,"d":"kr. 0.00"},{"v":0,"d":"kr. 0.00"},{"v":18750,"d":"kr. 18,750.00"},{"v":35000,"d":"kr. 35,000.00"},{"v":0,"d":"kr. 0.00"},{"v":75000,"d":"kr. 75,000.00"},{"v":0,"d":"kr. 0.00"},{"v":0,"d":"kr. 0.00"},{"v":18750,"d":"kr. 18,750.00"}]
[null,"Projekt 4",{"v":5250,"d":"kr. 5,250.00"},{"v":0,"d":"kr. 0.00"},{"v":0,"d":"kr. 0.00"},{"v":24750,"d":"kr. 24,750.00"},{"v":0,"d":"kr. 0.00"},{"v":5625,"d":"kr. 5,625.00"},{"v":5075,"d":"kr. 5,075.00"},{"v":0,"d":"kr. 0.00"},{"v":0,"d":"kr. 0.00"},{"v":23925,"d":"kr. 23,925.00"},{"v":0,"d":"kr. 0.00"},{"v":5437.5,"d":"kr. 5,437.50"}]
[null,"Projekt 5",{"v":17500,"d":"kr. 17,500.00"},{"v":6250,"d":"kr. 6,250.00"},{"v":30000,"d":"kr. 30,000.00"},{"v":0,"d":"kr. 0.00"},{"v":0,"d":"kr. 0.00"},{"v":9375,"d":"kr. 9,375.00"},{"v":17850,"d":"kr. 17,850.00"},{"v":6375,"d":"kr. 6,375.00"},{"v":30600,"d":"kr. 30,600.00"},{"v":0,"d":"kr. 0.00"},{"v":0,"d":"kr. 0.00"},{"v":9562.5,"d":"kr. 9,562.50"}]
[null,"Hovedtotal",{"v":78750,"d":"kr. 78,750.00"},{"v":66250,"d":"kr. 66,250.00"},{"v":105000,"d":"kr. 105,000.00"},{"v":35750,"d":"kr. 35,750.00"},{"v":0,"d":"kr. 0.00"},{"v":66250,"d":"kr. 66,250.00"},{"v":79275,"d":"kr. 79,275.00"},{"v":67375,"d":"kr. 67,375.00"},{"v":105600,"d":"kr. 105,600.00"},{"v":34650,"d":"kr. 34,650.00"},{"v":0,"d":"kr. 0.00"},{"v":67000,"d":"kr. 67,000.00"}]